[Event "*** Titled Tuesday 3|2 Blitz"]
[Site "Chess.com"]
[Date "2016.06.07"]
[Round "4"]
[White "Grootneus"]
[Black "andretta"]
[Result "1-0"]
[WhiteElo "2081"]
[BlackElo "2169"]
[TimeControl "180+2"]
[EndTime "11:49:39 PDT"]
[Termination "Grootneus won by resignation"]

1. e4 {[%clk 0:03:01.9]} 1... c6 {[%clk 0:02:46.3]} 2. d4 {[%clk 0:03:01.4]}
2... d5 {[%clk 0:02:46]} 3. Nc3 {[%clk 0:03:03]} 3... dxe4 {[%clk 0:02:41.5]} 4.
Nxe4 {[%clk 0:03:04.9]} 4... Bf5 {[%clk 0:02:38.9]} 5. Ng3 {[%clk 0:03:05.4]}
5... Bg6 {[%clk 0:02:34.3]} 6. h4 {[%clk 0:03:07]} 6... h6 {[%clk 0:02:31.6]} 7.
Nf3 {[%clk 0:03:08.6]} 7... Nd7 {[%clk 0:02:27.6]} 8. h5 {[%clk 0:03:09.7]} 8...
Bh7 {[%clk 0:02:27.8]} 9. Bd3 {[%clk 0:03:11.3]} 9... Bxd3 {[%clk 0:02:29.5]}
10. Qxd3 {[%clk 0:03:13.2]} 10... e6 {[%clk 0:02:25.3]} 11. Bd2 {[%clk
0:03:14.3]} 11... Ngf6 {[%clk 0:02:23]} 12. O-O-O {[%clk 0:03:14.1]} 12... Be7
{[%clk 0:02:23.8]} 13. Kb1 {[%clk 0:03:14.7]} 13... O-O {[%clk 0:02:21.4]} 14.
Ne4 {[%clk 0:03:15.5]} 14... Nxe4 {[%clk 0:02:19.7]} 15. Qxe4 {[%clk 0:03:17.4]}
15... Nf6 {[%clk 0:02:18.5]} 16. Qe2 {[%clk 0:03:18.9]} 16... Qd5 {[%clk
0:02:16.6]} 17. Ne5 {[%clk 0:03:20.5]} 17... Qe4 {[%clk 0:02:14.7]} 18. Qxe4
{[%clk 0:03:22.2]} 18... Nxe4 {[%clk 0:02:14.2]} 19. Be3 {[%clk 0:03:23.7]}
19... f5 {[%clk 0:01:58.4]} 20. Ng6 {[%clk 0:03:01.4]} 20... Rf7 {[%clk
0:01:46.1]} 21. f3 {[%clk 0:02:52.2]} 21... Nf6 {[%clk 0:01:44.7]} 22. Rdg1
{[%clk 0:02:31.7]} 22... Nd5 {[%clk 0:01:41.1]} 23. Bc1 {[%clk 0:02:32.4]} 23...
Bd6 {[%clk 0:01:35.6]} 24. g4 {[%clk 0:02:27.9]} 24... fxg4 {[%clk 0:01:30.7]}
25. fxg4 {[%clk 0:02:29.8]} 25... Rf2 {[%clk 0:01:28.5]} 26. g5 {[%clk
0:02:26.6]} 26... hxg5 {[%clk 0:01:10.1]} 27. Bxg5 {[%clk 0:02:24.6]} 27... Re8
{[%clk 0:00:59.8]} 28. h6 {[%clk 0:02:14.1]} 28... Rh2 {[%clk 0:00:56.6]} 29.
Rxh2 {[%clk 0:01:19.4]} 29... Bxh2 {[%clk 0:00:58.5]} 30. Rh1 {[%clk 0:01:16.1]}
30... Kh7 {[%clk 0:00:56.3]} 31. Ne5 {[%clk 0:00:42.2]} 31... Bxe5 {[%clk
0:00:38.6]} 32. dxe5 {[%clk 0:00:44.1]} 32... g6 {[%clk 0:00:40.2]} 33. Rf1
{[%clk 0:00:44.8]} 33... Kg8 {[%clk 0:00:40.5]} 34. c4 {[%clk 0:00:34.2]} 34...
Nb6 {[%clk 0:00:38]} 35. Rh1 {[%clk 0:00:27.5]} 35... Kh7 {[%clk 0:00:29.6]} 36.
Rf1 {[%clk 0:00:27.6]} 36... Kg8 {[%clk 0:00:29.9]} 37. Rf6 {[%clk 0:00:19.2]}
37... Re7 {[%clk 0:00:19.5]} 38. Rxg6+ {[%clk 0:00:17.8]} 38... Kh7 {[%clk
0:00:20.8]} 39. Rf6 {[%clk 0:00:08.7]} 39... Nxc4 {[%clk 0:00:19.3]} 40. Rf8
{[%clk 0:00:08.5]} 40... Nxe5 {[%clk 0:00:19.4]} 41. Bxe7 {[%clk 0:00:09.3]}
41... Ng6 {[%clk 0:00:20.2]} 42. Re8 {[%clk 0:00:10]} 42... e5 {[%clk
0:00:20.1]} 43. Bc5 {[%clk 0:00:10.7]} 43... Kxh6 {[%clk 0:00:21.5]} 44. Kc2
{[%clk 0:00:09.4]} 44... Kg5 {[%clk 0:00:22.9]} 45. Kd2 {[%clk 0:00:09.9]} 45...
Kf5 {[%clk 0:00:24.8]} 46. Ke1 {[%clk 0:00:10.2]} 46... Nf4 {[%clk 0:00:26.1]}
47. Bd6 {[%clk 0:00:10.6]} 47... e4 {[%clk 0:00:26.7]} 48. Bxf4 {[%clk
0:00:11.7]} 48... Kxf4 {[%clk 0:00:27.8]} 49. Ke2 {[%clk 0:00:13.6]} 1-0

[Event "*** Titled Tuesday 3|2 Blitz"]
[Site "Chess.com"]
[Date "2016.06.07"]
[Round "4"]
[White "VSERGUEI"]
[Black "bugsbunny444"]
[Result "1-0"]
[WhiteElo "2493"]
[BlackElo "2361"]
[TimeControl "180+2"]
[EndTime "11:49:50 PDT"]
[Termination "VSERGUEI won by resignation"]

1. d4 {[%clk 0:03:01.9]} 1... e6 {[%clk 0:02:59.3]} 2. c4 {[%clk 0:03:02.5]}
2... b6 {[%clk 0:03:00.4]} 3. e4 {[%clk 0:03:02.3]} 3... Bb7 {[%clk 0:03:01.4]}
4. Nc3 {[%clk 0:03:01.1]} 4... Bb4 {[%clk 0:03:01.9]} 5. Qc2 {[%clk 0:03:00]}
5... Qh4 {[%clk 0:03:01.6]} 6. Bd3 {[%clk 0:02:54.8]} 6... f5 {[%clk 0:03:02.1]}
7. Nf3 {[%clk 0:02:36.1]} 7... Bxc3+ {[%clk 0:03:00.7]} 8. Qxc3 {[%clk
0:01:58.3]} 8... Qg4 {[%clk 0:03:01.1]} 9. Rg1 {[%clk 0:01:49.7]} 9... fxe4
{[%clk 0:02:50.6]} 10. Ne5 {[%clk 0:01:50]} 10... Qh5 {[%clk 0:02:44]} 11. Be2
{[%clk 0:01:49.3]} 11... Qxh2 {[%clk 0:02:44.2]} 12. Kf1 {[%clk 0:01:44.5]}
12... Nf6 {[%clk 0:02:30]} 13. g4 {[%clk 0:01:44.1]} 13... d6 {[%clk 0:02:07.9]}
14. g5 {[%clk 0:01:44.9]} 14... dxe5 {[%clk 0:01:57.8]} 15. gxf6 {[%clk
0:01:45.7]} 15... gxf6 {[%clk 0:01:55.8]} 16. dxe5 {[%clk 0:01:46.5]} 16... Qxe5
{[%clk 0:01:35.6]} 17. Qxe5 {[%clk 0:01:46.1]} 17... fxe5 {[%clk 0:01:37.5]} 18.
Bh5+ {[%clk 0:01:46.7]} 18... Kd7 {[%clk 0:01:18.5]} 19. Rg7+ {[%clk 0:01:45.7]}
19... Kd6 {[%clk 0:01:01.6]} 20. b3 {[%clk 0:01:37.4]} 20... Nd7 {[%clk
0:00:38.9]} 21. Ba3+ {[%clk 0:01:29.5]} 21... Kc6 {[%clk 0:00:31.6]} 22. Re7
{[%clk 0:01:14.8]} 22... Nf8 {[%clk 0:00:12.9]} 23. Be8+ {[%clk 0:01:08.8]}
23... Rxe8 {[%clk 0:00:10.9]} 24. Rxe8 {[%clk 0:01:09.6]} 24... Ng6 {[%clk
0:00:05.9]} 25. Rxh8 {[%clk 0:01:08.2]} 25... Nxh8 {[%clk 0:00:06.9]} 26. Rd1
{[%clk 0:01:08.9]} 26... Nf7 {[%clk 0:00:07.4]} 27. Ke2 {[%clk 0:01:05.1]} 27...
Nd6 {[%clk 0:00:05.3]} 28. Ke3 {[%clk 0:00:59.8]} 28... Kd7 {[%clk 0:00:04.7]}
29. Bxd6 {[%clk 0:00:56.8]} 29... cxd6 {[%clk 0:00:05.8]} 30. Rh1 {[%clk
0:00:57.7]} 30... d5 {[%clk 0:00:07.2]} 31. Rxh7+ {[%clk 0:00:58.5]} 31... Kc6
{[%clk 0:00:08.7]} 32. Re7 {[%clk 0:00:58.3]} 32... Bc8 {[%clk 0:00:06.6]} 33.
Rxa7 {[%clk 0:00:58]} 33... Bb7 {[%clk 0:00:04.5]} 34. a4 {[%clk 0:00:54]} 34...
Kc7 {[%clk 0:00:05.3]} 35. a5 {[%clk 0:00:54.8]} 35... bxa5 {[%clk 0:00:02.4]}
36. Rxa5 {[%clk 0:00:54.9]} 36... d4+ {[%clk 0:00:04.3]} 37. Kd2 {[%clk
0:00:54.5]} 37... Kd6 {[%clk 0:00:05.7]} 38. b4 {[%clk 0:00:52.2]} 38... Bc8
{[%clk 0:00:04.1]} 39. Ra7 {[%clk 0:00:51.7]} 39... Bd7 {[%clk 0:00:05]} 40. c5+
{[%clk 0:00:50.7]} 40... Kc6 {[%clk 0:00:06.6]} 41. b5+ {[%clk 0:00:51.4]} 41...
Kxb5 {[%clk 0:00:07]} 42. Rxd7 {[%clk 0:00:52.2]} 42... Kxc5 {[%clk 0:00:08.6]}
43. Rd8 {[%clk 0:00:49.7]} 43... Kc6 {[%clk 0:00:08.7]} 44. Kc2 {[%clk
0:00:48.9]} 44... Kc5 {[%clk 0:00:09.9]} 45. Re8 {[%clk 0:00:48.5]} 45... Kd5
{[%clk 0:00:10.9]} 46. Rh8 {[%clk 0:00:48.1]} 46... Kc4 {[%clk 0:00:11.2]} 47.
Rh6 {[%clk 0:00:48.8]} 47... Kd5 {[%clk 0:00:10.7]} 48. Rg6 {[%clk 0:00:49.6]}
48... Kd6 {[%clk 0:00:11.3]} 49. Kb3 {[%clk 0:00:49.8]} 49... Kd5 {[%clk
0:00:02.3]} 50. Rh6 {[%clk 0:00:50.6]} 50... Kd6 {[%clk 0:00:03.6]} 51. Kc4
{[%clk 0:00:51]} 51... e3 {[%clk 0:00:03]} 52. fxe3 {[%clk 0:00:51.2]} 52...
dxe3 {[%clk 0:00:04.9]} 53. Kd3 {[%clk 0:00:51.8]} 1-0

[Event "*** Titled Tuesday 3|2 Blitz"]
[Site "Chess.com"]
[Date "2016.06.07"]
[Round "4"]
[White "SloLev"]
[Black "underdogchss"]
[Result "1/2-1/2"]
[WhiteElo "2093"]
[BlackElo "2330"]
[TimeControl "180+2"]
[EndTime "11:49:55 PDT"]
[Termination "Game drawn by repetition"]

1. d4 {[%clk 0:03:01.9]} 1... Nf6 {[%clk 0:02:47.2]} 2. Nf3 {[%clk 0:03:02.1]}
2... e6 {[%clk 0:02:48.3]} 3. e3 {[%clk 0:03:02.3]} 3... d5 {[%clk 0:02:41]} 4.
Bd3 {[%clk 0:03:02.6]} 4... c5 {[%clk 0:02:42]} 5. b3 {[%clk 0:03:03.2]} 5...
cxd4 {[%clk 0:02:42.1]} 6. exd4 {[%clk 0:03:03.4]} 6... Nc6 {[%clk 0:02:37.2]}
7. a3 {[%clk 0:03:03.1]} 7... Be7 {[%clk 0:02:36.3]} 8. O-O {[%clk 0:03:03.8]}
8... O-O {[%clk 0:02:37.2]} 9. Nbd2 {[%clk 0:03:03.1]} 9... Re8 {[%clk
0:02:36.4]} 10. Bb2 {[%clk 0:03:03.4]} 10... Bf8 {[%clk 0:02:36.6]} 11. Ne5
{[%clk 0:03:02.4]} 11... g6 {[%clk 0:02:35.1]} 12. f4 {[%clk 0:03:01.2]} 12...
Bg7 {[%clk 0:02:35.8]} 13. Kh1 {[%clk 0:03:00.7]} 13... Nd7 {[%clk 0:02:31.2]}
14. Ndf3 {[%clk 0:02:59.5]} 14... f5 {[%clk 0:02:24.7]} 15. Nxd7 {[%clk
0:02:56.5]} 15... Bxd7 {[%clk 0:02:25.3]} 16. Qd2 {[%clk 0:02:56.2]} 16... Rc8
{[%clk 0:02:19.8]} 17. Rae1 {[%clk 0:02:54.8]} 17... Qe7 {[%clk 0:02:16.3]} 18.
Qf2 {[%clk 0:02:53.8]} 18... Qf6 {[%clk 0:02:16.6]} 19. Ne5 {[%clk 0:02:51.9]}
19... Nxe5 {[%clk 0:02:16]} 20. Rxe5 {[%clk 0:02:51.7]} 20... a6 {[%clk
0:02:09.9]} 21. Rfe1 {[%clk 0:02:49]} 21... Qf8 {[%clk 0:01:50.6]} 22. R5e2
{[%clk 0:02:47.5]} 22... Qd6 {[%clk 0:01:50.7]} 23. g3 {[%clk 0:02:45.3]} 23...
Bc6 {[%clk 0:01:50.3]} 24. Kg1 {[%clk 0:02:44.5]} 24... Bf6 {[%clk 0:01:50.6]}
25. h4 {[%clk 0:02:43.3]} 25... Kf7 {[%clk 0:01:49.9]} 26. c4 {[%clk 0:02:36.6]}
26... dxc4 {[%clk 0:01:49.5]} 27. bxc4 {[%clk 0:02:36.6]} 27... b5 {[%clk
0:01:45.2]} 28. cxb5 {[%clk 0:02:30.9]} 28... axb5 {[%clk 0:01:45]} 29. Kh2
{[%clk 0:02:20.3]} 29... h6 {[%clk 0:01:31.5]} 30. d5 {[%clk 0:02:08.3]} 30...
Qxd5 {[%clk 0:01:20.4]} 31. Bxf6 {[%clk 0:02:07.8]} 31... Kxf6 {[%clk
0:01:21.7]} 32. Bb1 {[%clk 0:02:06.1]} 32... Qd6 {[%clk 0:00:57.6]} 33. Rd2
{[%clk 0:02:06.6]} 33... Bd5 {[%clk 0:00:55.3]} 34. Qd4+ {[%clk 0:02:05.9]}
34... Kf7 {[%clk 0:00:56.5]} 35. Ba2 {[%clk 0:01:56.2]} 35... Qc5 {[%clk
0:00:47.2]} 36. Bxd5 {[%clk 0:01:49.1]} 36... Qxd4 {[%clk 0:00:39.7]} 37. Rxd4
{[%clk 0:01:48.8]} 37... exd5 {[%clk 0:00:39.8]} 38. Rxe8 {[%clk 0:01:50.4]}
38... Rxe8 {[%clk 0:00:34.8]} 39. Rxd5 {[%clk 0:01:51.9]} 39... Re2+ {[%clk
0:00:34.7]} 40. Kh3 {[%clk 0:01:52.7]} 40... Rb2 {[%clk 0:00:33.3]} 41. Rd6
{[%clk 0:01:53.3]} 41... Rb3 {[%clk 0:00:31.8]} 42. Rb6 {[%clk 0:01:54]} 42...
Rxa3 {[%clk 0:00:29]} 43. Rxb5 {[%clk 0:01:54.1]} 43... Ra6 {[%clk 0:00:22.6]}
44. Rb7+ {[%clk 0:01:54.3]} 44... Kf6 {[%clk 0:00:23.3]} 45. h5 {[%clk
0:01:52.6]} 45... gxh5 {[%clk 0:00:17.8]} 46. Rh7 {[%clk 0:01:52.4]} 46... Kg6
{[%clk 0:00:18.6]} 47. Rh8 {[%clk 0:01:51.9]} 47... Rb6 {[%clk 0:00:15.8]} 48.
Rg8+ {[%clk 0:01:52.9]} 48... Kf6 {[%clk 0:00:16.7]} 49. Rc8 {[%clk 0:01:53.7]}
49... Kg6 {[%clk 0:00:17.5]} 50. Kh4 {[%clk 0:01:54.3]} 50... Rb3 {[%clk
0:00:16.7]} 51. Rg8+ {[%clk 0:01:53.8]} 51... Kf7 {[%clk 0:00:17.1]} 52. Rh8
{[%clk 0:01:53.9]} 52... Kg7 {[%clk 0:00:18]} 53. Rc8 {[%clk 0:01:55.4]} 53...
Rb1 {[%clk 0:00:18.2]} 54. Kh3 {[%clk 0:01:55]} 54... Rh1+ {[%clk 0:00:17.2]}
55. Kg2 {[%clk 0:01:54.7]} 55... Rb1 {[%clk 0:00:18.8]} 56. Rc6 {[%clk
0:01:54.2]} 56... Rb3 {[%clk 0:00:18.6]} 57. Kh3 {[%clk 0:01:55.1]} 57... Rb1
{[%clk 0:00:19.4]} 58. Re6 {[%clk 0:01:54.7]} 58... Rh1+ {[%clk 0:00:17.5]} 59.
Kg2 {[%clk 0:01:55]} 59... Rd1 {[%clk 0:00:18.9]} 60. Kf3 {[%clk 0:01:56]} 60...
Rd3+ {[%clk 0:00:19.5]} 61. Kf2 {[%clk 0:01:57.1]} 61... Rd2+ {[%clk 0:00:20.6]}
62. Kf3 {[%clk 0:01:58.2]} 62... Ra2 {[%clk 0:00:22.1]} 63. Rb6 {[%clk
0:01:54.8]} 63... Ra3+ {[%clk 0:00:22.9]} 64. Kg2 {[%clk 0:01:55.8]} 64... Kh7
{[%clk 0:00:22.8]} 65. Kh3 {[%clk 0:01:56.7]} 65... Ra1 {[%clk 0:00:24]} 66. Rf6
{[%clk 0:01:56.6]} 66... Ra5 {[%clk 0:00:24.5]} 67. Kh4 {[%clk 0:01:57.6]} 67...
Kg7 {[%clk 0:00:25.9]} 68. Rb6 {[%clk 0:01:54.5]} 68... Ra1 {[%clk 0:00:26.8]}
69. Rb7+ {[%clk 0:01:56]} 69... Kg6 {[%clk 0:00:27.5]} 70. Rb6+ {[%clk
0:01:56.8]} 70... Kg7 {[%clk 0:00:28.9]} 71. Kh3 {[%clk 0:01:58.1]} 71... Ra2
{[%clk 0:00:29.1]} 72. Rb5 {[%clk 0:01:56.9]} 72... Kf6 {[%clk 0:00:30]} 73.
Rb6+ {[%clk 0:01:57.8]} 73... Kg7 {[%clk 0:00:31.1]} 74. Rb7+ {[%clk 0:01:55.2]}
74... Kg6 {[%clk 0:00:32]} 75. Rb6+ {[%clk 0:01:56.3]} 75... Kg7 {[%clk
0:00:32.4]} 1/2-1/2

[Event "*** Titled Tuesday 3|2 Blitz"]
[Site "Chess.com"]
[Date "2016.06.07"]
[Round "4"]
[White "ShimanovAlex"]
[Black "theprosecution1"]
[Result "1-0"]
[WhiteElo "2655"]
[BlackElo "2444"]
[TimeControl "180+2"]
[EndTime "11:50:08 PDT"]
[Termination "ShimanovAlex won by resignation"]

1. d4 {[%clk 0:01:27.6]} 1... Nf6 {[%clk 0:03:00]} 2. Nf3 {[%clk 0:01:28.4]}
2... e6 {[%clk 0:03:01.3]} 3. Bf4 {[%clk 0:01:29.8]} 3... b6 {[%clk 0:03:02]} 4.
e3 {[%clk 0:01:31.1]} 4... Bb7 {[%clk 0:03:03.5]} 5. Nbd2 {[%clk 0:01:32.7]}
5... c5 {[%clk 0:03:04.8]} 6. Nc4 {[%clk 0:01:33.9]} 6... Be7 {[%clk 0:02:22.6]}
7. Nd6+ {[%clk 0:01:34]} 7... Bxd6 {[%clk 0:02:24]} 8. Bxd6 {[%clk 0:01:35.6]}
8... Ne4 {[%clk 0:02:25.9]} 9. dxc5 {[%clk 0:01:32.6]} 9... bxc5 {[%clk
0:02:26.7]} 10. Ne5 {[%clk 0:01:24]} 10... Nc6 {[%clk 0:02:24.6]} 11. Nc4 {[%clk
0:01:23.7]} 11... Na5 {[%clk 0:02:24.9]} 12. Na3 {[%clk 0:01:18.4]} 12... Qb6
{[%clk 0:02:23.3]} 13. Nb5 {[%clk 0:01:18.3]} 13... Nxd6 {[%clk 0:02:09]} 14.
Qxd6 {[%clk 0:01:13.2]} 14... Qxd6 {[%clk 0:02:09.5]} 15. Nxd6+ {[%clk
0:01:14.8]} 15... Ke7 {[%clk 0:02:11.4]} 16. Nxb7 {[%clk 0:01:14.8]} 16... Nxb7
{[%clk 0:02:13.3]} 17. e4 {[%clk 0:01:14.5]} 17... Nd6 {[%clk 0:02:09.8]} 18. f3
{[%clk 0:01:15.2]} 18... f5 {[%clk 0:02:10.8]} 19. e5 {[%clk 0:01:13]} 19... Nf7
{[%clk 0:02:10.2]} 20. f4 {[%clk 0:01:14.1]} 20... d6 {[%clk 0:02:11.7]} 21.
exd6+ {[%clk 0:01:14.7]} 21... Nxd6 {[%clk 0:02:13.6]} 22. Be2 {[%clk
0:01:13.5]} 22... Rad8 {[%clk 0:02:12.7]} 23. O-O-O {[%clk 0:01:14.2]} 23... h6
{[%clk 0:02:11.5]} 24. h4 {[%clk 0:01:14]} 24... Ne4 {[%clk 0:02:03.6]} 25. Rxd8
{[%clk 0:01:14.2]} 25... Rxd8 {[%clk 0:02:05.5]} 26. Rh3 {[%clk 0:01:15.5]}
26... Rd2 {[%clk 0:01:53.3]} 27. Re3 {[%clk 0:01:12.8]} 27... Rd7 {[%clk
0:01:48.3]} 28. Ra3 {[%clk 0:01:13]} 28... Kf6 {[%clk 0:01:37]} 29. Ra6 {[%clk
0:01:11.5]} 29... g5 {[%clk 0:01:35.8]} 30. hxg5+ {[%clk 0:00:57.3]} 30... hxg5
{[%clk 0:01:37.7]} 31. fxg5+ {[%clk 0:00:58.8]} 31... Nxg5 {[%clk 0:01:37.4]}
32. Bc4 {[%clk 0:00:59.6]} 32... Ke5 {[%clk 0:01:33.4]} 33. b3 {[%clk 0:00:58]}
33... Re7 {[%clk 0:01:29.7]} 34. Rc6 {[%clk 0:00:58.7]} 34... Ne4 {[%clk
0:01:30.4]} 35. a4 {[%clk 0:00:57.4]} 35... Kd4 {[%clk 0:01:29.6]} 36. a5 {[%clk
0:00:55.7]} 36... Rg7 {[%clk 0:01:30.4]} 37. Rxe6 {[%clk 0:00:49.6]} 37... Kc3
{[%clk 0:01:22.8]} 38. Bf1 {[%clk 0:00:43]} 38... Rh7 {[%clk 0:01:24]} 39. Re5
{[%clk 0:00:39.8]} 39... Rh1 {[%clk 0:01:13.9]} 40. Rxf5 {[%clk 0:00:39.9]}
40... Ng3 {[%clk 0:00:47.7]} 41. Rf3+ {[%clk 0:00:40.1]} 41... Kb4 {[%clk
0:00:45.1]} 42. Rxg3 {[%clk 0:00:41.1]} 42... Rxf1+ {[%clk 0:00:46.8]} 43. Kb2
{[%clk 0:00:42.7]} 43... Kxa5 {[%clk 0:00:48.5]} 44. Rg6 {[%clk 0:00:42.9]}
44... Rf2 {[%clk 0:00:47.7]} 45. g4 {[%clk 0:00:43.9]} 45... a6 {[%clk
0:00:48.4]} 46. Kc3 {[%clk 0:00:43.3]} 46... Kb5 {[%clk 0:00:49.2]} 47. g5
{[%clk 0:00:42.8]} 47... Rf3+ {[%clk 0:00:50.2]} 48. Kb2 {[%clk 0:00:43.9]}
48... Rg3 {[%clk 0:00:50.8]} 49. Rg8 {[%clk 0:00:37.9]} 49... Kb6 {[%clk
0:00:44.6]} 50. Ka3 {[%clk 0:00:34.9]} 50... Rg2 {[%clk 0:00:44.5]} 51. c4
{[%clk 0:00:35.2]} 51... Rg1 {[%clk 0:00:43.2]} 52. Kb2 {[%clk 0:00:35.6]} 52...
Rg2+ {[%clk 0:00:44.2]} 53. Ka3 {[%clk 0:00:36]} 53... Rg3 {[%clk 0:00:46.1]}
54. g6 {[%clk 0:00:36.4]} 54... Kb7 {[%clk 0:00:47.7]} 55. g7 {[%clk 0:00:36.4]}
55... Rg1 {[%clk 0:00:48.9]} 56. Kb2 {[%clk 0:00:37.3]} 56... Rg3 {[%clk
0:00:47.7]} 57. Ka3 {[%clk 0:00:36.4]} 57... Rg1 {[%clk 0:00:47.4]} 58. b4
{[%clk 0:00:37.4]} 58... Rg3+ {[%clk 0:00:48.4]} 59. Ka4 {[%clk 0:00:38.3]}
59... cxb4 {[%clk 0:00:48.1]} 60. Kxb4 {[%clk 0:00:39.6]} 60... Rg4 {[%clk
0:00:48.5]} 61. Kc3 {[%clk 0:00:39.5]} 61... Rg5 {[%clk 0:00:48.6]} 62. Kd4
{[%clk 0:00:40]} 62... a5 {[%clk 0:00:49.1]} 63. c5 {[%clk 0:00:40.9]} 63... Rg6
{[%clk 0:00:48.1]} 64. c6+ {[%clk 0:00:39.9]} 1-0

[Event "*** Titled Tuesday 3|2 Blitz"]
[Site "Chess.com"]
[Date "2016.06.07"]
[Round "4"]
[White "Elshan1985"]
[Black "severomorskij"]
[Result "0-1"]
[WhiteElo "2600"]
[BlackElo "2602"]
[TimeControl "180+2"]
[EndTime "11:50:22 PDT"]
[Termination "severomorskij won by resignation"]

1. Nf3 {[%clk 0:03:01.9]} 1... c5 {[%clk 0:03:00.4]} 2. c4 {[%clk 0:03:01.5]}
2... Nc6 {[%clk 0:02:59.8]} 3. Nc3 {[%clk 0:03:03.4]} 3... e5 {[%clk 0:03:00.4]}
4. e3 {[%clk 0:03:03.9]} 4... Nf6 {[%clk 0:03:01.4]} 5. d4 {[%clk 0:03:05]} 5...
cxd4 {[%clk 0:03:02.7]} 6. exd4 {[%clk 0:03:06.1]} 6... e4 {[%clk 0:03:04.3]} 7.
Ne5 {[%clk 0:03:07.1]} 7... Bb4 {[%clk 0:03:05.9]} 8. Be2 {[%clk 0:02:32.2]}
8... Qa5 {[%clk 0:02:56]} 9. Nxc6 {[%clk 0:02:30.7]} 9... Bxc3+ {[%clk 0:02:46]}
10. bxc3 {[%clk 0:02:31.3]} 10... dxc6 {[%clk 0:02:44]} 11. O-O {[%clk
0:02:28.3]} 11... O-O {[%clk 0:02:44.6]} 12. Qb3 {[%clk 0:02:26.5]} 12... Qf5
{[%clk 0:02:41.7]} 13. h3 {[%clk 0:02:20.7]} 13... Qg6 {[%clk 0:02:41.2]} 14.
Kh2 {[%clk 0:02:21.6]} 14... b6 {[%clk 0:02:23]} 15. a4 {[%clk 0:02:22.5]} 15...
Be6 {[%clk 0:02:21.2]} 16. Qb4 {[%clk 0:02:16.6]} 16... Rac8 {[%clk 0:02:10.5]}
17. Be3 {[%clk 0:02:16.8]} 17... Nd7 {[%clk 0:02:02.6]} 18. Qd6 {[%clk
0:02:12.2]} 18... Rfd8 {[%clk 0:01:51.5]} 19. a5 {[%clk 0:02:10]} 19... h6
{[%clk 0:01:28.5]} 20. axb6 {[%clk 0:02:05]} 20... axb6 {[%clk 0:01:25.2]} 21.
Qf4 {[%clk 0:01:57.5]} 21... Nf6 {[%clk 0:01:19.3]} 22. Rfc1 {[%clk 0:01:50.9]}
22... b5 {[%clk 0:01:16.5]} 23. d5 {[%clk 0:01:52.1]} 23... cxd5 {[%clk
0:01:04.7]} 24. cxb5 {[%clk 0:01:53.2]} 24... Rb8 {[%clk 0:00:41.5]} 25. Bd4
{[%clk 0:01:45.9]} 25... Nh5 {[%clk 0:00:33.3]} 26. Qe5 {[%clk 0:01:37]} 26...
Nf6 {[%clk 0:00:33.9]} 27. Ra6 {[%clk 0:01:28.8]} 27... Re8 {[%clk 0:00:27.1]}
28. Qf4 {[%clk 0:01:22.9]} 28... Nh5 {[%clk 0:00:22.6]} 29. Bxh5 {[%clk
0:01:15.6]} 29... Qxh5 {[%clk 0:00:22.9]} 30. b6 {[%clk 0:01:16]} 30... e3
{[%clk 0:00:10.4]} 31. Bxe3 {[%clk 0:01:13.8]} 31... Qg6 {[%clk 0:00:10.9]} 32.
Rca1 {[%clk 0:01:10.6]} 32... Bf5 {[%clk 0:00:11.8]} 33. Qg3 {[%clk 0:01:07.3]}
33... Qc6 {[%clk 0:00:11.1]} 34. Bd4 {[%clk 0:01:04.3]} 34... Bg6 {[%clk
0:00:12.2]} 35. b7 {[%clk 0:00:59.3]} 35... Qd7 {[%clk 0:00:06.6]} 36. Rd6
{[%clk 0:00:50.4]} 36... Qe7 {[%clk 0:00:05.3]} 37. Rxd5 {[%clk 0:00:38.2]}
37... Rxb7 {[%clk 0:00:06.1]} 38. Re5 {[%clk 0:00:39]} 38... Qf8 {[%clk
0:00:06.1]} 39. Rxe8 {[%clk 0:00:37]} 39... Qxe8 {[%clk 0:00:08]} 40. h4 {[%clk
0:00:36.7]} 40... h5 {[%clk 0:00:08.8]} 41. Ra5 {[%clk 0:00:36.9]} 41... Rb5
{[%clk 0:00:08.6]} 42. Ra7 {[%clk 0:00:32.7]} 42... Rd5 {[%clk 0:00:09.3]} 43.
Rb7 {[%clk 0:00:32.3]} 43... Rd7 {[%clk 0:00:10.3]} 44. Rb8 {[%clk 0:00:33.3]}
44... Rd8 {[%clk 0:00:11.9]} 45. Rb7 {[%clk 0:00:34.5]} 45... Qc6 {[%clk
0:00:11.2]} 46. Qe5 {[%clk 0:00:29.9]} 46... f6 {[%clk 0:00:04.9]} 47. Qe7
{[%clk 0:00:29.9]} 47... Qd6+ {[%clk 0:00:06]} 48. Qxd6 {[%clk 0:00:31.1]} 48...
Rxd6 {[%clk 0:00:07.9]} 49. Kg3 {[%clk 0:00:32.6]} 49... Be4 {[%clk 0:00:06.9]}
50. Re7 {[%clk 0:00:31.9]} 50... Bd5 {[%clk 0:00:07.3]} 51. f3 {[%clk 0:00:33]}
51... Rc6 {[%clk 0:00:08.2]} 52. Kf4 {[%clk 0:00:32.9]} 52... Bb3 {[%clk
0:00:09.3]} 53. Rb7 {[%clk 0:00:33.5]} 53... Bc2 {[%clk 0:00:10.1]} 54. Ke3
{[%clk 0:00:33.1]} 54... Kh7 {[%clk 0:00:11]} 55. g4 {[%clk 0:00:29.9]} 55...
hxg4 {[%clk 0:00:11.5]} 56. fxg4 {[%clk 0:00:31.8]} 56... Kg6 {[%clk 0:00:10.4]}
57. h5+ {[%clk 0:00:31.6]} 57... Kh6 {[%clk 0:00:11.1]} 58. Kd2 {[%clk
0:00:31.5]} 58... Be4 {[%clk 0:00:11.7]} 59. Be3+ {[%clk 0:00:32.8]} 59... Kh7
{[%clk 0:00:12.3]} 60. h6 {[%clk 0:00:34.2]} 60... Rd6+ {[%clk 0:00:13.3]} 61.
Kc1 {[%clk 0:00:35.1]} 61... Bxb7 {[%clk 0:00:14.4]} 0-1